fUST/lending_fUST_20241127
["ID","MTS","AMOUNT","RATE_DAILY","PERIOD"]
[343490752,1732663844599,-1023.75875979,0.0003,7]
[343490753,1732663844609,-64000.0,0.0003,15]
[343490754,1732663844618,-7970.36418188,0.0003,10]
[343490755,1732663844627,-159.0,0.0003,2]
[343490756,1732663844639,-798.87551208,0.0003,2]
[343490757,1732663844649,-7339.0,0.0003,2]
[343490758,1732663844658,-7337.0,0.0003,2]
[343490759,1732663844668,-7337.0,0.0003,2]
[343490760,1732663844680,-7337.0,0.0003,2]
[343490761,1732663844690,-7337.0,0.0003,2]
[343490762,1732663844700,-7337.0,0.0003,2]
[343490763,1732663844709,-596.0,0.0003,2]
[343490764,1732663844718,-594.0,0.0003,2]
[343490765,1732663844727,-594.0,0.0003,2]
[343490766,1732663844846,-594.0,0.0003,2]
[343490767,1732663844857,-266.905,0.0003,2]
[343490768,1732663844870,-182.0,0.0003,2]
[343490769,1732663844880,-264.0,0.0003,2]
[343490770,1732663844890,-167.74055473,0.00030009,2]
[343490771,1732663844901,-207.627958,0.00030069,2]
[343490772,1732663844912,-311.441938,0.00030069,2]
[343490773,1732663844922,-171.830482,0.00030069,2]
[343490774,1732663844932,-778.437854,0.00030137,120]
[343490775,1732663844942,-238.83761621,0.00030137,2]
[343490776,1732663844953,-167.74055473,0.00030361,2]
[343490777,1732663844964,-207.627958,0.00030435,2]
[343490778,1732663844973,-311.441938,0.00030435,2]
[343490779,1732663844983,-235.501,0.00030449,2]
[343490780,1732663844993,-160.0,0.00030513,3]
[343490781,1732663845003,-1002.19648279,0.00030521,5]
[343490782,1732663845013,-500.0,0.00030521,5]
[343490783,1732663845023,-420.0,0.00030576,2]
[343490784,1732663845033,-167.74055473,0.00030713,2]
[343490785,1732663845043,-207.627958,0.00030802,2]
[343490786,1732663845052,-311.441938,0.00030802,2]
[343490787,1732663845062,-171.830482,0.00030802,2]
[343490788,1732663845073,-140826.1900403,0.00030871,10]
[343490789,1732663845085,-6565.1433236,0.00030871,10]
[343490790,1732663845096,-2581.98290586,0.00030871,10]
[343490791,1732663845107,-770.72500001,0.00030871,10]
[343490808,1732664266663,165.251299,0.00013973,2]
[343490809,1732664266879,165.251299,0.00020447,2]
[343490810,1732664582251,3000.0,0.0002,2]
[343490811,1732664831141,-167.74061982,0.00025,2]
[343490812,1732664831164,-3737.45116664,0.00026652,2]
[343490813,1732664831187,-312.79067075,0.00026821,2]
[343490814,1732664831210,-165.251299,0.00026921,2]
[343490815,1732664831231,-164.833155,0.00028186,2]
[343490816,1732664831255,-300.0,0.00028317,2]
[343490817,1732664831276,-300.0,0.00028317,2]
[343490818,1732664831298,-1425.58854607,0.00028318,2]
[343490819,1732664852173,-4237.41145393,0.00028318,2]
[343490820,1732664852197,-306.59883718,0.00028319,3]
[343490821,1732664943355,158.276329,0.00013973,2]
[343490822,1732664943592,158.276329,0.00020447,2]
[343490835,1732665032735,-158.276329,0.00026921,2]
[343490836,1732665032746,-235.7522136,0.00028319,3]
[343490837,1732665032758,-300.0,0.00028332,2]
[343490838,1732665032767,-300.0,0.00028332,2]
[343490839,1732665032776,-500.0,0.00028333,2]
[343490840,1732665032786,-500.0,0.00028333,3]
[343490841,1732665032797,-500.0,0.00028333,3]
[343490842,1732665032806,-509.6411852,0.00028333,3]
[343490843,1732665032816,-182.654711,0.00028369,2]
[343490844,1732665032826,-1739.5135232,0.00028869,2]
[343490845,1732665032837,-289.025145,0.00028889,2]
[343490846,1732665032847,-153.92,0.000295,31]
[343490847,1732665032856,-289.025145,0.00029574,2]
[343490848,1732665032866,-300.0,0.000296,14]
[343490849,1732665032876,-1117.42,0.000297,2]
[343490850,1732665032886,-604.48,0.00029703,4]
[343490851,1732665032896,-500.0,0.00029824,3]
[343490852,1732665032907,-531.0,0.00029824,2]
[343490853,1732665032917,-1105.0,0.00029824,2]
[343490854,1732665032927,-1588.88370133,0.00029824,2]
[343490916,1732665038816,-499.9978326,0.00029824,3]
[343490918,1732665038827,-0.0021674,0.00029824,3]
[343490920,1732665038839,-789.11629867,0.00029824,2]
[343490922,1732665038848,-42133.7842714,0.00029999,2]
[343490926,1732665038873,-1084.07097228,0.00029999,2]
[343491106,1732665040609,-2799.999995,0.00029999,2]
[343491484,1732665044633,-467.06453436,0.00029999,2]
[343491595,1732665046684,-913.5551954,0.00029999,2]
[343491596,1732665046697,-2429.79008825,0.00029999,2]
[343491599,1732665616318,162.548581,0.00013973,2]
[343491600,1732665616521,162.548581,0.00020447,2]
[343491606,1732666027143,-4005.29597791,0.00024703,2]
[343491607,1732666031119,-994.70402209,0.00024703,2]
[343491608,1732666031140,-235.7522136,0.00024953,2]
[343491609,1732666031161,-355.20138037,0.00025205,2]
[343491610,1732666031184,-162.548581,0.00026921,2]
[343491611,1732666031205,-349.0,0.00027,2]
[343491612,1732666031225,-349.0,0.00027671,2]
[343491613,1732666031246,-174.354806,0.00028022,2]
[343491614,1732666031266,-300.0,0.0002858,2]
[343491615,1732666031287,-2213.0,0.0002858,2]
[343491616,1732666031308,-300.0,0.00028581,2]
[343491617,1732666031328,-289.025145,0.00028584,2]
[343491618,1732666031349,-349.0,0.00028767,2]
[343491619,1732666031371,-353.815,0.00028902,2]
[343491620,1732666031391,-232.79531894,0.000294,2]
[343491636,1732666236285,-171.2488259,0.0002936,2]
[343491637,1732666236297,-2767.20468106,0.000294,2]
[343491638,1732666236327,-3000.0,0.0002941,2]
[343491639,1732666236338,-300.0,0.00029419,2]
[343491640,1732666236348,-300.0,0.00029419,2]
[343491641,1732666236358,-2656.34649303,0.0002942,2]
[343491642,1732666236371,-343.65350697,0.0002942,2]
[343491643,1732666236381,-401.2564543,0.0002943,2]
[343491705,1732666239051,-2598.7435457,0.0002943,2]
[343491706,1732666239061,-3000.0,0.0002944,2]
[343491707,1732666239071,-529.24,0.00029449,3]
[343491708,1732666239083,-500.0,0.00029449,3]
[343491709,1732666239095,-500.0,0.00029449,3]
[343491710,1732666239103,-500.0,0.00029449,3]
[343491711,1732666239114,-500.0,0.00029449,3]
[343491712,1732666239123,-500.0,0.00029449,3]
[343491713,1732666239137,-541.59,0.00029449,3]
[343491714,1732666239146,-500.0,0.00029449,3]
[343491715,1732666239156,-3000.0,0.0002945,2]
[343491716,1732666239168,-500.0,0.00029458,3]
[343491717,1732666239178,-508.14146953,0.00029458,3]
[343491718,1732666239191,-530.74,0.00029458,3]
[343491719,1732666239201,-500.0,0.00029458,3]
[343491720,1732666239209,-284.37222628,0.00029458,3]
[343491721,1732666239219,-500.0,0.00029458,3]
[343491722,1732666239228,-500.0,0.00029458,3]
[343491724,1732666239237,-500.0,0.00029458,3]
[343491726,1732666239247,-500.0,0.00029458,3]
[343491727,1732666239256,-193.40116282,0.00029458,3]
[343491729,1732666239265,-235.70803375,0.00029458,3]
[343491731,1732666239275,-500.0,0.00029458,3]
[343491733,1732666239285,-500.0,0.00029458,3]
[343491735,1732666239294,-500.0,0.00029458,3]
[343491737,1732666239304,-500.0,0.00029458,3]
[343491739,1732666239314,-519.78140819,0.00029459,3]
[343491742,1732666239325,-500.0,0.00029459,3]
[343491744,1732666239335,-545.74096345,0.00029459,3]
[343491746,1732666239344,-500.0,0.00029459,3]
[343491748,1732666239353,-314.22618003,0.00029459,3]
[343491749,1732666239363,-500.0,0.00029459,3]
[343491751,1732666239372,-3000.0,0.0002946,2]
[343491753,1732666239381,-3000.0,0.0002947,2]
[343491756,1732666239391,-153.144,0.0002947,23]
[343491758,1732666239401,-3303.371374,0.0002948,2]
[343491760,1732666239410,-239.60013742,0.0002948,2]
[343491762,1732666239421,-153.93,0.000295,31]
[343491764,1732666239430,-171.24882588,0.00029641,2]
[343491766,1732666239445,-1005.68,0.000297,2]
[343491767,1732666239454,-150.0,0.00029824,2]
[343491769,1732666239463,-171.24882588,0.00029923,2]
[343491771,1732666239473,-248486.75246444,0.00029999,2]
[343491901,1732666240705,-1349.515223,0.00029999,2]
[343492209,1732666244035,-8155.7615716,0.00029999,2]
[343492212,1732666244047,-71948.52017748,0.00029999,2]
[343492214,1732666244064,-2045.91791706,0.00029999,2]
[343492384,1732666245893,-1057.42568009,0.00024953,2]
[343492555,1732666330151,162.548581,0.00013973,2]
[343492556,1732666330358,162.548581,0.00021661,2]
[343492559,1732666971496,160.331944,0.00013973,2]
[343492560,1732666971737,160.331944,0.00021209,2]
[343492563,1732667247141,-3235.64427684,0.00024456,2]
[343492564,1732667250135,-618.3948137,0.00024456,2]
[343492565,1732667251139,-88.53522937,0.00024456,2]
[343492566,1732667251161,-164.833155,0.00025087,2]
[343492567,1732667251183,-218.262526,0.00025386,2]
[343492568,1732667251205,-160.046354,0.00025522,2]
[343492569,1732667251228,-238.6737209,0.00025554,2]
[343492570,1732667251250,-300.0,0.00026486,2]
[343492571,1732667251272,-300.0,0.00026486,2]
[343492572,1732667251295,-3701.0,0.00026486,2]
[343492573,1732667251317,-661.86249741,0.00026487,2]
[343492617,1732667432148,-300.0,0.00024999,2]
[343492618,1732667432158,-300.0,0.00024999,2]
[343492619,1732667432168,-5832.46172854,0.00025,2]
[343492620,1732667432201,-2313.96248149,0.00025,2]
[343492663,1732667438287,-2864.94231334,0.00025,2]
[343492670,1732667438347,-2489.515304,0.00025,2]
[343492989,1732667441996,-1309.499991,0.00025,2]
[343493093,1732667443029,-2684.42866413,0.00025,2]
[343493095,1732667443039,-3134.0593096,0.00025,2]
[343493097,1732667443049,-1740.26678681,0.0002509,2]
[343493099,1732667443059,-422.00011,0.00026,2]
[343493101,1732667443069,-238.26851991,0.00026478,2]
[343493103,1732667443078,-765.99259694,0.00026487,2]
[343493105,1732667443089,-24238.13750259,0.00026487,2]
[343493107,1732667443099,-5671.3875005,0.00026578,2]
[343493109,1732667443108,-234.04535724,0.00026693,2]
[343493110,1732667443118,-189.210661,0.00026794,2]
[343493113,1732667443128,-218.0,0.00027,2]
[343493114,1732667443137,-175.0,0.00027,2]
[343493116,1732667443147,-248.0535565,0.0002708,2]
[343493119,1732667443158,-420.0,0.00027082,2]
[343493121,1732667443167,-238.26851986,0.00027092,2]
[343493123,1732667443177,-500.0,0.00027397,3]
[343493124,1732667443187,-979.27,0.00027397,3]
[343493128,1732667443197,-500.0,0.00027397,3]
[343493130,1732667443207,-500.0,0.00027397,3]
[343493132,1732667443218,-246.4,0.00027397,3]
[343493134,1732667443228,-500.0,0.00027397,3]
[343493136,1732667443237,-500.0,0.00027397,3]
[343493138,1732667443247,-500.0,0.00027397,3]
[343493140,1732667443257,-480.19772697,0.00027397,3]
[343493142,1732667443269,-500.0,0.00027397,3]
[343493144,1732667443279,-500.0,0.00027397,3]
[343493146,1732667443289,-500.0,0.00027397,3]
[343493148,1732667443299,-254.40801842,0.00027397,3]
[343493150,1732667443309,-167.834019,0.0002742,2]
[343493152,1732667443319,-420.0,0.00027499,2]
[343493154,1732667443329,-218.0,0.00027671,2]
[343493156,1732667443339,-238.26851986,0.00027705,2]
[343493158,1732667443349,-172.135066,0.00028148,2]
[343493160,1732667443358,-533.142381,0.00028148,2]
[343493162,1732667443368,-311.441937,0.00028148,2]
[343493164,1732667443377,-171.830482,0.00028148,2]
[343493166,1732667443387,-183.648383,0.00028148,2]
[343493167,1732667443397,-500.0,0.0002828,5]
[343493170,1732667443407,-234.04535723,0.00028297,2]
[343493171,1732667443416,-238.26851986,0.00028319,2]
[343493173,1732667443426,-189.54,0.0002836,3]
[343493175,1732667443438,-568.62,0.0002836,3]
[343493177,1732667443447,-472.59,0.0002836,10]
[343493179,1732667443457,-393.83,0.0002836,10]
[343493181,1732667443467,-328.19,0.0002836,10]
[343493184,1732667443477,-500.0,0.00028369,3]
[343493186,1732667443486,-500.0,0.00028369,3]
[343493188,1732667443496,-979.27,0.00028369,3]
[343493190,1732667443506,-979.27,0.00028369,3]
[343493192,1732667443519,-261.58,0.00028369,3]
[343493194,1732667443530,-500.0,0.00028369,3]
[343493196,1732667443539,-500.0,0.00028369,3]
[343493197,1732667443549,-500.0,0.00028369,3]
[343493200,1732667443559,-500.0,0.00028369,3]
[343493202,1732667443569,-396.83567111,0.00028369,3]
[343493204,1732667443579,-500.0,0.00028369,3]
[343493206,1732667443590,-504.74,0.00028369,3]
[343493207,1732667443600,-405.5941018,0.00028369,3]
[343493210,1732667443611,-500.0,0.00028369,3]
[343493211,1732667443620,-500.0,0.00028369,3]
[343493213,1732667443630,-500.0,0.00028369,3]
[343493216,1732667443640,-156.38,0.0002837,19]
[343493217,1732667443650,-500.0,0.0002837,3]
[343493219,1732667443660,-500.0,0.0002837,3]
[343493221,1732667443670,-486.3621777,0.0002837,3]
[343493223,1732667443680,-500.0,0.0002837,3]
[343493225,1732667443690,-500.0,0.0002837,3]
[343493228,1732667443700,-309.41753655,0.0002837,3]
[343493230,1732667443710,-500.0,0.0002837,3]
[343493231,1732667443719,-500.0,0.0002837,3]
[343493233,1732667443729,-282.92883616,0.0002837,3]
[343493235,1732667443741,-500.0,0.0002837,3]
[343493238,1732667443751,-506.54,0.0002837,3]
[343493240,1732667443763,-500.0,0.0002837,3]
[343493242,1732667443774,-500.0,0.0002837,3]
[343493244,1732667443783,-500.0,0.0002837,3]
[343493245,1732667443792,-500.0,0.0002837,3]
[343493247,1732667443802,-500.0,0.0002837,3]
[343493249,1732667443812,-500.0,0.0002837,3]
[343493251,1732667443822,-623.97,0.0002837,3]
[343493265,1732667443948,-500.0,0.0002837,3]
[343493267,1732667443959,-500.0,0.0002837,3]
[343493270,1732667443969,-500.0,0.0002837,3]
[343493272,1732667443980,-500.0,0.0002837,3]
[343493274,1732667443989,-500.0,0.0002837,3]
[343493275,1732667444000,-484.72224084,0.0002837,3]
[343493277,1732667444012,-500.0,0.0002837,3]
[343493280,1732667444022,-500.0,0.0002837,3]
[343493282,1732667444032,-500.0,0.0002837,3]
[343493284,1732667444042,-550.75,0.0002837,3]
[343493286,1732667444051,-500.0,0.0002837,3]
[343493288,1732667444061,-184.2690791,0.0002837,3]
[343493290,1732667444070,-500.0,0.0002837,3]
[343493292,1732667444080,-500.0,0.0002837,3]
[343493294,1732667444090,-500.0,0.0002837,3]
[343493296,1732667444100,-500.0,0.0002837,3]
[343493297,1732667444110,-500.0,0.0002837,3]
[343493300,1732667444120,-535.28904297,0.0002837,3]
[343493302,1732667444130,-512.02917756,0.0002837,3]
[343493304,1732667444140,-428.15326431,0.0002837,3]
[343493306,1732667444150,-500.0,0.0002837,3]
[343493308,1732667444160,-500.0,0.0002837,3]
[343493310,1732667444170,-500.0,0.0002837,3]
[343493312,1732667444180,-500.0,0.0002837,3]
[343493314,1732667444192,-500.0,0.0002837,3]
[343493316,1732667444201,-502.47969952,0.0002837,3]
[343493318,1732667444211,-509.719891,0.0002837,3]
[343493320,1732667444220,-508.79115503,0.0002837,3]
[343493322,1732667444230,-612.98,0.0002837,3]
[343493324,1732667444240,-500.0,0.0002837,3]
[343493326,1732667444252,-500.0,0.0002837,3]
[343493328,1732667444264,-626.69,0.0002837,3]
[343493330,1732667444275,-500.0,0.0002837,3]
[343493332,1732667444284,-507.92304083,0.0002837,3]
[343493334,1732667444294,-500.0,0.0002837,3]
[343493336,1732667444303,-500.0,0.0002837,3]
[343493338,1732667444313,-500.0,0.0002837,3]
[343493340,1732667444323,-264.75781611,0.0002837,3]
[343493342,1732667444332,-516.62331326,0.0002837,3]
[343493344,1732667444342,-500.0,0.0002837,3]
[343493345,1732667444351,-500.0,0.0002837,3]
[343493347,1732667444362,-501.91972121,0.0002837,3]
[343493350,1732667444371,-500.0,0.0002837,3]
[343493351,1732667444381,-531.83719526,0.0002837,3]
[343493353,1732667444390,-500.0,0.0002837,3]
[343493356,1732667444400,-500.0,0.0002837,3]
[343493357,1732667444410,-500.0,0.0002837,3]
[343493359,1732667444420,-500.0,0.0002837,3]
[343493361,1732667444430,-500.0,0.0002837,3]
[343493364,1732667444442,-157.25379968,0.0002837,3]
[343493365,1732667444451,-500.0,0.000284,5]
[343493368,1732667444462,-160.331944,0.00028445,2]
[343493370,1732667444473,-533.142381,0.00028499,2]
[343493372,1732667444482,-311.441937,0.00028499,2]
[343493374,1732667444492,-183.648383,0.00028617,2]
[343493376,1732667444502,-218.0,0.00028767,2]
[343493378,1732667444515,-175.0,0.00028767,2]
[343493380,1732667444525,-533.142381,0.00028851,2]
[343493382,1732667444534,-311.441937,0.00028851,2]
[343493383,1732667444543,-238.26851986,0.00028933,2]
[343493385,1732667444553,-183.648383,0.00029086,2]
[343493387,1732667444563,-533.142381,0.00029203,2]
[343493390,1732667444573,-311.441937,0.00029203,2]
[343493391,1732667444582,-162.07930823,0.0002926,2]
[343493393,1732667444592,-587.0,0.00029339,2]
[343493395,1732667444602,-167.76,0.00029447,3]
[343493397,1732667444611,-500.0,0.00029447,3]
[343493400,1732667444621,-500.0,0.00029447,3]
[343493402,1732667444631,-500.0,0.00029448,3]
[343493404,1732667444640,-500.0,0.00029456,3]
[343493406,1732667444650,-979.27,0.00029456,3]
[343493407,1732667444660,-500.0,0.00029459,3]
[343493409,1732667444670,-500.0,0.00029459,3]
[343493411,1732667444679,-153.7,0.000295,31]
[343493413,1732667444689,-153.7,0.000295,31]
[343493415,1732667444698,-238.26851986,0.00029547,2]
[343493417,1732667444708,-171.830482,0.00029555,2]
[343493419,1732667444718,-183.648383,0.00029555,2]
[343493421,1732667444728,-533.142381,0.00029555,2]
[343493423,1732667444737,-311.441937,0.00029555,2]
[343493425,1732667444748,-4469.13498254,0.00029632,2]
[343493427,1732667444758,-500.0,0.0002968,3]
[343493429,1732667444770,-500.0,0.0002968,3]
[343493431,1732667444780,-979.27,0.0002968,3]
[343493433,1732667444790,-500.0,0.0002968,3]
[343493435,1732667444799,-511.42875569,0.0002968,3]
[343493437,1732667444808,-1000.0,0.00029681,2]
[343493439,1732667444819,-1000.0,0.00029681,2]
[343493441,1732667444828,-1000.0,0.00029681,2]
[343493443,1732667444838,-1000.0,0.00029681,2]
[343493445,1732667444848,-1000.0,0.00029681,2]
[343493447,1732667444858,-1000.0,0.00029681,2]
[343493449,1732667444868,-787.37416535,0.00029681,2]
[343493451,1732667444877,-1281.91,0.000297,2]
[343493453,1732667444887,-379.08,0.0002973,3]
[343493456,1732667444898,-531.0,0.00029857,2]
[343493457,1732667444908,-2378.0,0.00029857,2]
[343493460,1732667444918,-1110.0,0.00029857,2]
[343493461,1732667444928,-234.04535723,0.000299,2]
[343493464,1732667444939,-150.0,0.00029936,2]
[343493466,1732667444948,-581.45600095,0.00029998,2]
[343493467,1732667444958,-500.0,0.00029998,2]
[343493469,1732667444967,-500.0,0.00029998,2]
[343493472,1732667444978,-429.05364706,0.00029998,2]
[343493474,1732667444988,-500.0,0.00029998,2]
[343493476,1732667444999,-500.0,0.00029998,2]
[343493478,1732667445009,-500.0,0.00029998,2]
[343493480,1732667445020,-181.8741678,0.00029998,2]
[343493482,1732667445029,-191.24842212,0.00029998,2]
[343493484,1732667445039,-500.0,0.00029998,2]
[343493485,1732667445049,-500.0,0.00029998,2]
[343493487,1732667445058,-500.0,0.00029998,2]
[343493489,1732667445068,-500.0,0.00029998,2]
[343493491,1732667445078,-500.0,0.00029998,2]
[343493493,1732667445087,-500.0,0.00029998,2]
[343493495,1732667445097,-500.0,0.00029998,2]
[343493497,1732667445108,-500.0,0.00029998,2]
[343493499,1732667445118,-500.0,0.00029998,2]
[343493501,1732667445127,-500.0,0.00029998,2]
[343493503,1732667445137,-500.0,0.00029998,2]
[343493505,1732667445146,-500.0,0.00029998,2]
[343493507,1732667445155,-500.0,0.00029998,2]
[343493509,1732667445166,-500.0,0.00029998,2]
[343493511,1732667445176,-166.73756596,0.00029998,2]
[343493513,1732667445185,-500.0,0.00029998,2]
[343493515,1732667445195,-604.78087435,0.00029998,2]
[343493517,1732667445204,-280.61600426,0.00029998,2]
[343493519,1732667445214,-373.67688124,0.00029998,2]
[343493521,1732667445223,-500.0,0.00029998,2]
[343493523,1732667445232,-500.0,0.00029998,2]
[343493525,1732667445242,-570.0,0.00029998,2]
[343493527,1732667445252,-500.0,0.00029998,2]
[343493529,1732667445262,-500.0,0.00029998,2]
[343493531,1732667445274,-500.0,0.00029998,2]
[343493534,1732667445284,-500.0,0.00029998,2]
[343493535,1732667445293,-500.0,0.00029998,2]
[343493538,1732667445303,-500.0,0.00029998,2]
[343493540,1732667445313,-500.0,0.00029998,2]
[343493542,1732667445322,-500.0,0.00029998,2]
[343493543,1732667445332,-500.0,0.00029998,2]
[343493545,1732667445342,-577.85141295,0.00029998,2]
[343493547,1732667445352,-500.0,0.00029998,2]
[343493549,1732667445361,-500.0,0.00029998,2]
[343493551,1732667445371,-500.0,0.00029998,2]
[343493554,1732667445381,-500.0,0.00029998,2]
[343493556,1732667445390,-500.0,0.00029998,2]
[343493558,1732667445400,-500.0,0.00029999,3]
[343493559,1732667445409,-500.0,0.00029999,3]
[343493561,1732667445419,-500.0,0.00029999,3]
[343493564,1732667445429,-979.27,0.00029999,3]
[343493565,1732667445443,-979.27,0.00029999,3]
[343493568,1732667445452,-500.0,0.00029999,3]
[343493571,1732667445461,-500.0,0.00029999,3]
[343493573,1732667445471,-695831.73318173,0.00029999,2]
[343493575,1732667445481,-176.62575,0.0003,2]
[343493577,1732667445491,-7339.0,0.0003,2]
[343493579,1732667445500,-7337.0,0.0003,2]
[343493581,1732667445511,-7337.0,0.0003,2]
[343493583,1732667445524,-7337.0,0.0003,2]
[343493586,1732667445535,-7337.0,0.0003,2]
[343493588,1732667445544,-7337.0,0.0003,2]
[343493590,1732667445553,-596.0,0.0003,2]
[343493592,1732667445564,-594.0,0.0003,2]
[343493594,1732667445574,-594.0,0.0003,2]
[343493596,1732667445583,-594.0,0.0003,2]
[343493598,1732667445593,-64000.0,0.0003,15]
[343493600,1732667445602,-7970.36418188,0.0003,10]
[343493602,1732667445613,-1500.0,0.0003,2]
[343493604,1732667445622,-1023.75875979,0.0003,7]
[343493606,1732667445633,-176.0,0.0003,2]
[343493608,1732667445642,-500.0,0.00030063,3]
[343493610,1732667445652,-979.27,0.00030067,3]
[343493612,1732667445661,-979.27,0.00030135,3]
[343493614,1732667445671,-500.0,0.00030136,3]
[343493616,1732667445680,-238.83761621,0.00030137,2]
[343493617,1732667445690,-778.437854,0.00030137,120]
[343493619,1732667445700,-238.26851986,0.0003016,2]
[343493621,1732667445710,-222.0,0.00030205,2]
[343493623,1732667445720,-177.0,0.00030205,2]
[343493625,1732667445729,-207.04675,0.00030485,2]
[343493627,1732667445738,-500.0,0.0003067,3]
[343493629,1732667445748,-205.86085205,0.0003067,3]
[343493631,1732667445757,-500.0,0.0003067,2]
[343493633,1732667445770,-500.0,0.0003067,3]
[343493635,1732667445783,-500.0,0.0003067,3]
[343493637,1732667445792,-238.9147553,0.0003067,3]
[343493639,1732667445807,-500.0,0.0003067,3]
[343493641,1732667445816,-541.27177392,0.00030673,2]
[343493643,1732667445826,-464.69854954,0.00030678,3]
[343493645,1732667445835,-3454.25321032,0.0003068,30]
[343493647,1732667445845,-541.27177389,0.00030698,2]
[343493649,1732667445855,-541.27177389,0.00030724,2]
[343493651,1732667445864,-541.27177389,0.00030749,2]
[343493653,1732667445874,-500.0,0.00030765,3]
[343493655,1732667445883,-979.27,0.00030765,3]
[343493657,1732667445892,-979.27,0.00030766,3]
[343493659,1732667445901,-13846.97075807,0.00030766,2]
[343493661,1732667445911,-500.0,0.00030767,3]
[343493662,1732667445920,-500.0,0.00030767,3]
[343493663,1732667445929,-500.0,0.00030767,3]
[343493664,1732667445938,-502.39332399,0.00030767,3]
[343493665,1732667445948,-979.27,0.00030767,3]
[343493666,1732667445957,-979.27,0.00030767,3]
[343493667,1732667445967,-979.27,0.00030767,3]
[343493668,1732667445976,-979.27,0.00030767,3]
[343493669,1732667445986,-979.27,0.00030767,3]
[343493670,1732667445995,-979.27,0.00030767,3]
[343493671,1732667446006,-979.27,0.00030767,3]
[343493672,1732667446023,-979.27,0.00030767,3]
[343493673,1732667446032,-979.27,0.00030767,3]
[343493674,1732667446042,-979.27,0.00030767,3]
[343493675,1732667446051,-979.27,0.00030767,3]
[343493676,1732667446061,-979.27,0.00030767,3]
[343493677,1732667446070,-979.42142721,0.00030767,3]
[343493678,1732667446079,-266.42452249,0.00030767,2]
[343493679,1732667446089,-545.14325706,0.00030767,2]
[343493680,1732667446098,-151.0,0.00030768,7]
[343493682,1732667446108,-779.312891,0.00030768,7]
[343493683,1732667446117,-779.312891,0.00030768,7]
[343493685,1732667446127,-151.0,0.00030768,7]
[343493687,1732667446137,-151.0,0.00030768,7]
[343493689,1732667446147,-151.0,0.00030768,7]
[343493691,1732667446157,-151.0,0.00030768,7]
[343493693,1732667446167,-151.0,0.00030768,7]
[343493695,1732667446177,-151.0,0.00030768,7]
[343493697,1732667446186,-170.95218,0.00030768,7]
[343493699,1732667446196,-170.95218,0.00030768,7]
[343493701,1732667446207,-564.05414011,0.00030768,2]
[343493703,1732667446216,-443.31285036,0.00030768,2]
[343493705,1732667446225,-222000.0,0.00030768,2]
[343493707,1732667446235,-500.0,0.00030773,5]
[343493709,1732667446245,-267.25052935,0.00030774,2]
[343493711,1732667446255,-541.27177389,0.00030774,2]
[343493713,1732667446271,-238.26851986,0.00030774,2]
[343493715,1732667446281,-299.336701,0.000308,18]
[343493717,1732667446291,-3713.38791954,0.00030801,2]
[343493719,1732667446301,-215.818954,0.00030866,7]
[343493721,1732667446311,-215.818954,0.00030866,7]
[343493723,1732667446320,-215.818954,0.00030866,7]
[343493725,1732667446330,-215.818954,0.00030866,7]
[343493727,1732667446339,-215.818954,0.00030866,7]